fUST/lending_fUST_20260609
["ID","MTS","AMOUNT","RATE_DAILY","PERIOD"]
[424500664,1780977044000,-559.76470753,0.00016438,2]
[424500686,1780977044000,-500.0,0.00016438,2]
[424500706,1780977044000,-500.0,0.00016438,2]
[424500747,1780977044000,-501.87400046,0.00016438,2]
[424500714,1780977044000,-500.0,0.00016438,2]
[424500749,1780977044000,-421.67988352,0.00016438,2]
[424500743,1780977044000,-500.0,0.00016438,2]
[424500745,1780977044000,-500.0,0.00016438,2]
[424500741,1780977044000,-500.0,0.00016438,2]
[424500737,1780977044000,-228.01356932,0.00016438,2]
[424500733,1780977044000,-500.0,0.00016438,2]
[424500735,1780977044000,-274.61502511,0.00016438,2]
[424500728,1780977044000,-500.0,0.00016438,2]
[424500704,1780977044000,-500.0,0.00016438,2]
[424500731,1780977044000,-500.0,0.00016438,2]
[424500722,1780977044000,-500.0,0.00016438,2]
[424500726,1780977044000,-500.0,0.00016438,2]
[424500720,1780977044000,-501.08807342,0.00016438,2]
[424500724,1780977044000,-500.0,0.00016438,2]
[424500718,1780977044000,-501.05206958,0.00016438,2]
[424500712,1780977044000,-500.0,0.00016438,2]
[424500708,1780977044000,-568.64,0.00016438,2]
[424500716,1780977044000,-581.03069587,0.00016438,2]
[424500710,1780977044000,-501.05582172,0.00016438,2]
[424500739,1780977044000,-500.0,0.00016438,2]
[424501049,1780977046000,-467.17988352,0.00016438,2]
[424501047,1780977046000,-78.32011648,0.00016438,2]
[424501070,1780977046000,-5000.0,0.00016274,2]
[424501074,1780977046000,-500.0,0.00016438,2]
[424501072,1780977046000,-32.82011648,0.00016438,2]
[424501076,1780977046000,-500.0,0.00016438,2]
[424501078,1780977046000,-217.17988352,0.00016438,2]
[424501989,1780977273000,151.0,8e-05,2]
[424501991,1780977375000,-240.55359454,0.00010081,7]
[424501992,1780977539000,151.0,8e-05,2]
[424501993,1780977585000,70718.233444,0.00023287,120]
[424501995,1780977788000,237.999898,0.0001,30]
[424501996,1780977842000,151.0,8e-05,2]
[424501997,1780978063000,-3382.17822725,9.458e-05,2]
[424501998,1780978063000,-1617.82177275,9.554e-05,2]
[424501999,1780978092000,151.0,8e-05,2]
[424502000,1780978099000,-3382.17822725,9.554e-05,2]
[424502001,1780978099000,-3048.61722358,9.651e-05,2]
[424502005,1780978099000,-151.0,0.00010045,2]
[424502004,1780978099000,-644.48788853,9.943e-05,2]
[424502003,1780978099000,-500.0,9.943e-05,2]
[424502002,1780978099000,-230.96084374,9.943e-05,2]
[424502006,1780978106000,709.7558169,0.000106,2]
[424502007,1780978162000,-306.0,0.000106,2]
[424502062,1780978232000,-360.83039183,0.00010674,7]
[424502053,1780978232000,-575.69143446,0.000106,2]
[424502060,1780978232000,-3408.55274864,0.000106,2]
[424502064,1780978232000,-300.0,0.00010777,2]
[424502071,1780978232000,-300.0,0.00010777,2]
[424502068,1780978232000,-300.0,0.00010777,2]
[424502073,1780978232000,-61.40906206,0.00010777,2]
[424502069,1780978232000,-300.0,0.00010777,2]
[424502066,1780978232000,-300.0,0.00010777,2]
[424502280,1780978239000,-287.78146201,0.00015449,2]
[424502295,1780978239000,-500.0,0.00015723,2]
[424502291,1780978239000,-500.0,0.00015723,2]
[424502293,1780978239000,-500.0,0.00015723,2]
[424502278,1780978239000,-159.28368088,0.00015449,2]
[424502274,1780978239000,-768.72334842,0.00015393,2]
[424502276,1780978239000,-500.0,0.00015395,2]
[424502267,1780978239000,-1000.0,0.0001463,2]
[424502261,1780978239000,-167.24,0.00014251,2]
[424502270,1780978239000,-13619.5620125,0.00015266,2]
[424502263,1780978239000,-220.078489,0.00014372,2]
[424502282,1780978239000,-500.0,0.00015635,2]
[424502272,1780978239000,-251.2003173,0.00015268,2]
[424502284,1780978239000,-186.0,0.00015635,2]
[424502320,1780978239000,-153.75599635,0.000159,2]
[424502287,1780978239000,-500.0,0.00015723,2]
[424502289,1780978239000,-500.0,0.00015723,2]
[424502299,1780978239000,-500.0,0.00015723,2]
[424502302,1780978239000,-228.52901831,0.00015723,2]
[424502303,1780978239000,-500.0,0.00015723,2]
[424502307,1780978239000,-500.0,0.00015723,2]
[424502305,1780978239000,-500.0,0.00015723,2]
[424502311,1780978239000,-500.0,0.00015723,2]
[424502309,1780978239000,-500.0,0.00015723,2]
[424502312,1780978239000,-500.0,0.00015723,2]
[424502314,1780978239000,-500.0,0.00015723,2]
[424502316,1780978239000,-328.8839705,0.00015723,2]
[424502260,1780978239000,-675.1766881,0.00013986,2]
[424502285,1780978239000,-444.0,0.00015635,2]
[424502256,1780978239000,-864.0,0.000133,2]
[424502243,1780978239000,-483.27168545,0.00012616,2]
[424502265,1780978239000,-500.0,0.00014508,2]
[424502208,1780978239000,-3800.0,0.00010494,2]
[424502206,1780978239000,-1200.0,0.00010494,2]
[424502217,1780978239000,-300.0,0.00010777,2]
[424502212,1780978239000,-300.0,0.00010777,2]
[424502213,1780978239000,-300.0,0.00010777,2]
[424502210,1780978239000,-238.59093794,0.00010777,2]
[424502219,1780978239000,-300.0,0.00010777,2]
[424502215,1780978239000,-300.0,0.00010777,2]
[424502221,1780978239000,-300.0,0.00010777,2]
[424502223,1780978239000,-300.0,0.00010777,2]
[424502226,1780978239000,-300.0,0.00010777,2]
[424502225,1780978239000,-300.0,0.00010777,2]
[424502228,1780978239000,-600.0,0.00010992,2]
[424502269,1780978239000,-224.9950173,0.00015068,2]
[424502230,1780978239000,-2118.9974571,0.00011394,2]
[424502241,1780978239000,-500.0,0.00012616,2]
[424502318,1780978239000,-150.88021148,0.000159,2]
[424502245,1780978239000,-500.0,0.00012616,2]
[424502232,1780978239000,-720.0,0.00012091,2]
[424502236,1780978239000,-496.36217271,0.00012616,2]
[424502238,1780978239000,-500.0,0.00012616,2]
[424502234,1780978239000,-165.059733,0.00012097,2]
[424502247,1780978239000,-500.0,0.00012616,2]
[424502249,1780978239000,-500.0,0.00012616,2]
[424502253,1780978239000,-500.0,0.00012616,2]
[424502251,1780978239000,-500.0,0.00012616,2]
[424502254,1780978239000,-11238.7866946,0.00012617,2]
[424502258,1780978239000,-1000.0,0.00013699,2]
[424502240,1780978239000,-500.0,0.00012616,2]
[424502321,1780978239000,-507.44295963,0.00015909,2]
[424502367,1780978239000,-581.99,0.00016237,2]
[424502327,1780978239000,-500.0,0.00016137,2]
[424502379,1780978239000,-500.0,0.00016438,2]
[424502381,1780978239000,-500.0,0.00016438,2]
[424502383,1780978239000,-500.0,0.00016438,2]
[424502389,1780978239000,-500.0,0.00016438,2]
[424502391,1780978239000,-500.0,0.00016438,2]
[424502385,1780978239000,-500.0,0.00016438,2]
[424502387,1780978239000,-500.0,0.00016438,2]
[424502393,1780978239000,-500.0,0.00016438,2]
[424502405,1780978239000,-500.0,0.00016438,2]
[424502407,1780978239000,-500.0,0.00016438,2]
[424502409,1780978239000,-500.0,0.00016438,2]
[424502403,1780978239000,-500.0,0.00016438,2]
[424502397,1780978239000,-413.04947413,0.00016438,2]
[424502395,1780978239000,-501.55240572,0.00016438,2]
[424502401,1780978239000,-501.27275691,0.00016438,2]
[424502399,1780978239000,-500.87203534,0.00016438,2]
[424502413,1780978239000,-500.0,0.00016438,2]
[424502411,1780978239000,-501.09956732,0.00016438,2]
[424502415,1780978239000,-500.45023795,0.00016438,2]
[424502416,1780978239000,-500.95356397,0.00016438,2]
[424502422,1780978239000,-500.0,0.00016438,2]
[424502418,1780978239000,-500.34952019,0.00016438,2]
[424502420,1780978239000,-501.57381638,0.00016438,2]
[424502424,1780978239000,-191.64806322,0.00016438,2]
[424502431,1780978239000,-467.99268438,0.00016438,2]
[424502429,1780978239000,-500.0,0.00016438,2]
[424502428,1780978239000,-500.57529362,0.00016438,2]
[424502426,1780978239000,-500.0,0.00016438,2]
[424502325,1780978239000,-244.0,0.00016093,2]
[424502377,1780978239000,-500.0,0.00016438,2]
[424502371,1780978239000,-500.0,0.00016438,2]
[424502433,1780978239000,-500.92413467,0.00016438,2]
[424502373,1780978239000,-500.0,0.00016438,2]
[424502375,1780978239000,-2348.7717,0.00016438,2]
[424502332,1780978239000,-393.11710847,0.00016137,2]
[424502331,1780978239000,-500.0,0.00016137,2]
[424502342,1780978239000,-581.8,0.00016237,2]
[424502336,1780978239000,-581.8,0.00016237,2]
[424502343,1780978239000,-581.8,0.00016237,2]
[424502334,1780978239000,-581.8,0.00016237,2]
[424502329,1780978239000,-500.0,0.00016137,2]
[424502338,1780978239000,-581.8,0.00016237,2]
[424502341,1780978239000,-581.8,0.00016237,2]
[424502340,1780978239000,-581.8,0.00016237,2]
[424502344,1780978239000,-581.8,0.00016237,2]
[424502345,1780978239000,-581.8,0.00016237,2]
[424502346,1780978239000,-581.8,0.00016237,2]
[424502323,1780978239000,-1000.0,0.00016093,2]
[424502349,1780978239000,-581.8,0.00016237,2]
[424502347,1780978239000,-581.8,0.00016237,2]
[424502369,1780978239000,-1866.2084622,0.00016409,2]
[424502364,1780978239000,-581.8,0.00016237,2]
[424502365,1780978239000,-581.8,0.00016237,2]
[424502355,1780978239000,-581.8,0.00016237,2]
[424502350,1780978239000,-581.8,0.00016237,2]
[424502356,1780978239000,-581.8,0.00016237,2]
[424502351,1780978239000,-581.8,0.00016237,2]
[424502352,1780978239000,-581.8,0.00016237,2]
[424502360,1780978239000,-581.8,0.00016237,2]
[424502348,1780978239000,-581.8,0.00016237,2]
[424502358,1780978239000,-581.8,0.00016237,2]
[424502353,1780978239000,-581.8,0.00016237,2]
[424502513,1780978240000,-403.52710864,0.00016438,2]
[424502520,1780978240000,-500.89875391,0.00016438,2]
[424502516,1780978240000,-500.0,0.00016438,2]
[424502515,1780978240000,-500.0,0.00016438,2]
[424502495,1780978240000,-520.8475311,0.00016438,2]
[424502500,1780978240000,-500.0,0.00016438,2]
[424502498,1780978240000,-500.0,0.00016438,2]
[424502497,1780978240000,-500.0,0.00016438,2]
[424502502,1780978240000,-500.0,0.00016438,2]
[424502518,1780978240000,-501.36719018,0.00016438,2]
[424502509,1780978240000,-500.0,0.00016438,2]
[424502511,1780978240000,-500.0,0.00016438,2]
[424502523,1780978240000,-500.0,0.00016438,2]
[424502534,1780978240000,-500.0,0.00016438,2]
[424502522,1780978240000,-500.0,0.00016438,2]
[424502529,1780978240000,-500.0,0.00016438,2]
[424502531,1780978240000,-500.0,0.00016438,2]
[424502527,1780978240000,-500.42835741,0.00016438,2]
[424502532,1780978240000,-500.0,0.00016438,2]
[424502536,1780978240000,-500.0,0.00016438,2]
[424502538,1780978240000,-500.0,0.00016438,2]
[424502550,1780978240000,-558.01027791,0.00016438,2]
[424502539,1780978240000,-500.0,0.00016438,2]
[424502552,1780978240000,-500.0,0.00016438,2]
[424502553,1780978240000,-549.14531129,0.00016438,2]
[424502546,1780978240000,-616.39,0.00016438,2]
[424502506,1780978240000,-336.33194477,0.00016438,2]
[424502555,1780978240000,-500.0,0.00016438,2]
[424502525,1780978240000,-500.0,0.00016438,2]
[424502508,1780978240000,-501.76974022,0.00016438,2]
[424502467,1780978240000,-200.44887584,0.00016438,2]
[424502490,1780978240000,-500.0,0.00016438,2]
[424502543,1780978240000,-500.0,0.00016438,2]
[424502437,1780978240000,-501.72436862,0.00016438,2]
[424502435,1780978240000,-500.0,0.00016438,2]
[424502439,1780978240000,-500.0,0.00016438,2]
[424502441,1780978240000,-500.38975928,0.00016438,2]
[424502455,1780978240000,-500.0,0.00016438,2]
[424502456,1780978240000,-500.0,0.00016438,2]
[424502443,1780978240000,-501.26052061,0.00016438,2]
[424502458,1780978240000,-500.80822426,0.00016438,2]
[424502460,1780978240000,-500.49180331,0.00016438,2]
[424502452,1780978240000,-500.0,0.00016438,2]
[424502446,1780978240000,-501.19284106,0.00016438,2]
[424502444,1780978240000,-501.20927639,0.00016438,2]
[424502449,1780978240000,-500.60802906,0.00016438,2]
[424502462,1780978240000,-500.0,0.00016438,2]
[424502466,1780978240000,-500.0,0.00016438,2]
[424502464,1780978240000,-500.86889704,0.00016438,2]
[424502469,1780978240000,-500.0,0.00016438,2]
[424502471,1780978240000,-479.05478659,0.00016438,2]
[424502473,1780978240000,-633.31812313,0.00016438,2]
[424502476,1780978240000,-500.99871891,0.00016438,2]
[424502478,1780978240000,-500.34486815,0.00016438,2]
[424502475,1780978240000,-350.73121146,0.00016438,2]
[424502482,1780978240000,-500.0,0.00016438,2]
[424502480,1780978240000,-501.73050423,0.00016438,2]
[424502484,1780978240000,-511.98693594,0.00016438,2]
[424502486,1780978240000,-500.0,0.00016438,2]
[424502488,1780978240000,-500.0,0.00016438,2]
[424502492,1780978240000,-500.0,0.00016438,2]
[424502504,1780978240000,-500.0,0.00016438,2]
[424502541,1780978240000,-500.28778677,0.00016438,2]
[424502636,1780978240000,-500.0,0.00016438,2]
[424502548,1780978240000,-500.0,0.00016438,2]
[424502612,1780978240000,-500.0,0.00016438,2]
[424502626,1780978240000,-578.12627786,0.00016438,2]
[424502614,1780978240000,-500.0,0.00016438,2]
[424502616,1780978240000,-500.2981934,0.00016438,2]
[424502621,1780978240000,-500.3563139,0.00016438,2]
[424502618,1780978240000,-500.0,0.00016438,2]
[424502632,1780978240000,-500.54074511,0.00016438,2]
[424502634,1780978240000,-500.0,0.00016438,2]
[424502667,1780978240000,-500.0,0.00016438,2]
[424502638,1780978240000,-500.79786507,0.00016438,2]
[424502643,1780978240000,-501.08196093,0.00016438,2]
[424502652,1780978240000,-500.0,0.00016438,2]
[424502649,1780978240000,-529.85,0.00016438,2]
[424502630,1780978240000,-500.0,0.00016438,2]
[424502651,1780978240000,-501.64170259,0.00016438,2]
[424502640,1780978240000,-363.90474613,0.00016438,2]
[424502641,1780978240000,-500.0,0.00016438,2]
[424502645,1780978240000,-500.56174012,0.00016438,2]
[424502654,1780978240000,-534.54265231,0.00016438,2]
[424502658,1780978240000,-500.0,0.00016438,2]
[424502656,1780978240000,-446.22734707,0.00016438,2]
[424502660,1780978240000,-474.89521362,0.00016438,2]
[424502663,1780978240000,-500.0,0.00016438,2]
[424502665,1780978240000,-500.0,0.00016438,2]
[424502673,1780978240000,-500.0,0.00016438,2]
[424502669,1780978240000,-500.0,0.00016438,2]
[424502671,1780978240000,-500.0,0.00016438,2]
[424502675,1780978240000,-500.0,0.00016438,2]
[424502647,1780978240000,-500.0,0.00016438,2]
[424502628,1780978240000,-501.5201369,0.00016438,2]
[424502662,1780978240000,-500.0,0.00016438,2]
[424502623,1780978240000,-501.26239566,0.00016438,2]
[424502624,1780978240000,-500.0,0.00016438,2]
[424502557,1780978240000,-500.0,0.00016438,2]
[424502559,1780978240000,-539.65961841,0.00016438,2]
[424502561,1780978240000,-500.0,0.00016438,2]
[424502562,1780978240000,-500.0,0.00016438,2]
[424502564,1780978240000,-634.87,0.00016438,2]
[424502578,1780978240000,-500.0,0.00016438,2]
[424502576,1780978240000,-500.0,0.00016438,2]
[424502568,1780978240000,-500.0,0.00016438,2]
[424502580,1780978240000,-500.49050037,0.00016438,2]
[424502571,1780978240000,-500.0,0.00016438,2]
[424502573,1780978240000,-500.55439794,0.00016438,2]
[424502575,1780978240000,-500.0,0.00016438,2]
[424502582,1780978240000,-501.05737096,0.00016438,2]
[424502544,1780978240000,-500.0,0.00016438,2]
[424502586,1780978240000,-500.0,0.00016438,2]
[424502584,1780978240000,-500.0,0.00016438,2]
[424502610,1780978240000,-500.0,0.00016438,2]
[424502609,1780978240000,-516.25432277,0.00016438,2]
[424502603,1780978240000,-500.0,0.00016438,2]
[424502605,1780978240000,-500.0,0.00016438,2]
[424502598,1780978240000,-500.0,0.00016438,2]
[424502600,1780978240000,-500.0,0.00016438,2]
[424502607,1780978240000,-500.80290055,0.00016438,2]
[424502602,1780978240000,-500.0,0.00016438,2]
[424502596,1780978240000,-500.0,0.00016438,2]
[424502594,1780978240000,-500.0,0.00016438,2]
[424502592,1780978240000,-501.12798926,0.00016438,2]
[424502588,1780978240000,-500.0,0.00016438,2]
[424502590,1780978240000,-500.0,0.00016438,2]
[424502741,1780978241000,-501.35607253,0.00016438,2]
[424502743,1780978241000,-500.0,0.00016438,2]
[424502754,1780978241000,-500.0,0.00016438,2]
[424502746,1780978241000,-500.0,0.00016438,2]
[424502749,1780978241000,-500.0,0.00016438,2]
[424502751,1780978241000,-501.09642152,0.00016438,2]
[424502764,1780978241000,-500.51520183,0.00016438,2]
[424502773,1780978241000,-500.0,0.00016438,2]
[424502739,1780978241000,-500.46095713,0.00016438,2]
[424502771,1780978241000,-500.0,0.00016438,2]
[424502792,1780978241000,-500.0,0.00016438,2]
[424502769,1780978241000,-500.0,0.00016438,2]
[424502765,1780978241000,-500.0,0.00016438,2]
[424502775,1780978241000,-500.34849023,0.00016438,2]
[424502777,1780978241000,-500.0,0.00016438,2]
[424502728,1780978241000,-981.33,0.00016438,2]
[424502788,1780978241000,-501.54131444,0.00016438,2]
[424502794,1780978241000,-500.0,0.00016438,2]
[424502790,1780978241000,-460.4,0.00016438,2]
[424502781,1780978241000,-500.63773512,0.00016438,2]
[424502779,1780978241000,-500.0,0.00016438,2]
[424502768,1780978241000,-606.06395511,0.00016438,2]
[424502732,1780978241000,-500.0,0.00016438,2]
[424502721,1780978241000,-500.0,0.00016438,2]
[424502730,1780978241000,-614.85939723,0.00016438,2]
[424502796,1780978241000,-500.0,0.00016438,2]
[424502679,1780978241000,-582.4166845,0.00016438,2]
[424502677,1780978241000,-500.0,0.00016438,2]
[424502684,1780978241000,-500.0,0.00016438,2]
[424502681,1780978241000,-500.0,0.00016438,2]
[424502683,1780978241000,-500.0,0.00016438,2]
[424502686,1780978241000,-501.37428686,0.00016438,2]
[424502690,1780978241000,-500.64777459,0.00016438,2]
[424502693,1780978241000,-500.0,0.00016438,2]
[424502696,1780978241000,-500.0,0.00016438,2]
[424502702,1780978241000,-500.0,0.00016438,2]
[424502716,1780978241000,-500.8327864,0.00016438,2]
[424502704,1780978241000,-500.30483977,0.00016438,2]
[424502714,1780978241000,-501.92972802,0.00016438,2]
[424502707,1780978241000,-500.0,0.00016438,2]
[424502709,1780978241000,-501.07287764,0.00016438,2]
[424502711,1780978241000,-500.0,0.00016438,2]
[424502718,1780978241000,-501.02609953,0.00016438,2]
[424502723,1780978241000,-505.16996203,0.00016438,2]
[424502726,1780978241000,-500.0,0.00016438,2]
[424502734,1780978241000,-500.0,0.00016438,2]
[424502737,1780978241000,-500.0,0.00016438,2]
[424502699,1780978241000,-500.0,0.00016438,2]
[424502784,1780978241000,-500.24907219,0.00016438,2]
[424502783,1780978241000,-491.10764213,0.00016438,2]
[424502843,1780978241000,-500.0,0.00016438,2]
[424502851,1780978241000,-500.0,0.00016438,2]
[424502836,1780978241000,-501.41003463,0.00016438,2]
[424502857,1780978241000,-500.0,0.00016438,2]
[424502863,1780978241000,-500.0,0.00016438,2]
[424502853,1780978241000,-500.0,0.00016438,2]
[424502855,1780978241000,-500.0,0.00016438,2]
[424502859,1780978241000,-500.0,0.00016438,2]
[424502869,1780978241000,-500.31367613,0.00016438,2]
[424502871,1780978241000,-500.0,0.00016438,2]
[424502832,1780978241000,-500.0,0.00016438,2]
[424502861,1780978241000,-544.10193882,0.00016438,2]
[424502873,1780978241000,-500.0,0.00016438,2]
[424502875,1780978241000,-500.0,0.00016438,2]
[424502880,1780978241000,-500.0,0.00016438,2]
[424502878,1780978241000,-500.0,0.00016438,2]
[424502876,1780978241000,-501.64100414,0.00016438,2]
[424502882,1780978241000,-500.0,0.00016438,2]
[424502886,1780978241000,-502.92033262,0.00016438,2]
[424502884,1780978241000,-500.0,0.00016438,2]
[424502888,1780978241000,-500.0,0.00016438,2]
[424502786,1780978241000,-500.0,0.00016438,2]
[424502865,1780978241000,-500.0,0.00016438,2]
[424502834,1780978241000,-500.0,0.00016438,2]
[424502867,1780978241000,-500.0,0.00016438,2]
[424502828,1780978241000,-500.0,0.00016438,2]
[424502800,1780978241000,-635.67960888,0.00016438,2]
[424502839,1780978241000,-500.74702023,0.00016438,2]
[424502798,1780978241000,-500.0,0.00016438,2]
[424502812,1780978241000,-500.0,0.00016438,2]
[424502810,1780978241000,-500.0,0.00016438,2]
[424502808,1780978241000,-500.0,0.00016438,2]
[424502802,1780978241000,-500.0,0.00016438,2]
[424502811,1780978241000,-500.0,0.00016438,2]
[424502805,1780978241000,-500.0,0.00016438,2]
[424502818,1780978241000,-330.84399204,0.00016438,2]
[424502814,1780978241000,-501.12702107,0.00016438,2]
[424502804,1780978241000,-500.0,0.00016438,2]
[424502847,1780978241000,-500.0,0.00016438,2]
[424502849,1780978241000,-506.55659501,0.00016438,2]
[424502816,1780978241000,-500.0,0.00016438,2]
[424502830,1780978241000,-292.4957264,0.00016438,2]
[424502841,1780978241000,-500.0,0.00016438,2]
[424502845,1780978241000,-500.0,0.00016438,2]
[424502838,1780978241000,-500.0,0.00016438,2]
[424502824,1780978241000,-489.31789355,0.00016438,2]
[424502826,1780978241000,-500.0,0.00016438,2]
[424502822,1780978241000,-500.0,0.00016438,2]
[424502820,1780978241000,-500.0,0.00016438,2]
[424502968,1780978242000,-500.0,0.00016438,2]
[424502972,1780978242000,-500.0,0.00016438,2]
[424502970,1780978242000,-500.0,0.00016438,2]
[424502957,1780978242000,-500.0,0.00016438,2]
[424502974,1780978242000,-500.0,0.00016438,2]
[424502951,1780978242000,-500.96444306,0.00016438,2]
[424502954,1780978242000,-500.0,0.00016438,2]
[424502959,1780978242000,-500.0,0.00016438,2]
[424502963,1780978242000,-500.0,0.00016438,2]
[424502955,1780978242000,-500.0,0.00016438,2]
[424502961,1780978242000,-500.0,0.00016438,2]
[424502989,1780978242000,-500.0,0.00016438,2]
[424502966,1780978242000,-500.0,0.00016438,2]
[424502982,1780978242000,-500.0,0.00016438,2]
[424502997,1780978242000,-501.44926335,0.00016438,2]
[424502976,1780978242000,-500.0,0.00016438,2]
[424502987,1780978242000,-500.0,0.00016438,2]
[424502980,1780978242000,-500.0,0.00016438,2]
[424502978,1780978242000,-500.0,0.00016438,2]
[424502983,1780978242000,-500.0,0.00016438,2]
[424502990,1780978242000,-500.86688336,0.00016438,2]
[424502992,1780978242000,-514.28,0.00016438,2]
[424502994,1780978242000,-500.0,0.00016438,2]
[424502996,1780978242000,-500.0,0.00016438,2]
[424502999,1780978242000,-500.0,0.00016438,2]
[424503003,1780978242000,-500.0,0.00016438,2]
[424503001,1780978242000,-549.86472485,0.00016438,2]
[424502950,1780978242000,-321.20812234,0.00016438,2]
[424502985,1780978242000,-500.0,0.00016438,2]
[424502946,1780978242000,-572.16622189,0.00016438,2]
[424503010,1780978242000,-500.0,0.00016438,2]
[424502944,1780978242000,-500.0,0.00016438,2]
[424502893,1780978242000,-500.0,0.00016438,2]
[424502889,1780978242000,-500.0,0.00016438,2]
[424502895,1780978242000,-500.0,0.00016438,2]
[424502891,1780978242000,-500.0,0.00016438,2]
[424502898,1780978242000,-500.0,0.00016438,2]
[424502897,1780978242000,-500.0,0.00016438,2]
[424502900,1780978242000,-156.11022644,0.00016438,2]
[424502905,1780978242000,-500.0,0.00016438,2]
[424502902,1780978242000,-500.0,0.00016438,2]
[424502907,1780978242000,-500.0,0.00016438,2]
[424502909,1780978242000,-645.26355613,0.00016438,2]
[424502915,1780978242000,-501.15033297,0.00016438,2]
[424502911,1780978242000,-500.0,0.00016438,2]
[424502920,1780978242000,-500.0,0.00016438,2]
[424502916,1780978242000,-541.5080141,0.00016438,2]
[424502918,1780978242000,-500.0,0.00016438,2]
[424502913,1780978242000,-500.0,0.00016438,2]
[424502922,1780978242000,-500.0,0.00016438,2]
[424502924,1780978242000,-519.02655925,0.00016438,2]
[424502926,1780978242000,-500.0,0.00016438,2]
[424502928,1780978242000,-500.0,0.00016438,2]
[424502930,1780978242000,-500.647689,0.00016438,2]
[424502925,1780978242000,-500.0,0.00016438,2]
[424502932,1780978242000,-500.0,0.00016438,2]
[424502938,1780978242000,-500.50948491,0.00016438,2]
[424502936,1780978242000,-500.0,0.00016438,2]
[424502934,1780978242000,-500.0,0.00016438,2]
[424502940,1780978242000,-500.0,0.00016438,2]
[424502942,1780978242000,-500.0,0.00016438,2]
[424502948,1780978242000,-500.0,0.00016438,2]
[424503008,1780978242000,-500.0,0.00016438,2]
[424502904,1780978242000,-500.0,0.00016438,2]
[424503017,1780978242000,-500.0,0.00016438,2]
[424503089,1780978242000,-500.0,0.00016438,2]
[424503075,1780978242000,-513.56341385,0.00016438,2]
[424503087,1780978242000,-500.42184138,0.00016438,2]
[424503085,1780978242000,-500.0,0.00016438,2]
[424503076,1780978242000,-500.0,0.00016438,2]
[424503083,1780978242000,-506.76227087,0.00016438,2]
[424503078,1780978242000,-500.0,0.00016438,2]
[424503080,1780978242000,-500.0,0.00016438,2]
[424503091,1780978242000,-771.5,0.00016438,2]
[424503093,1780978242000,-500.0,0.00016438,2]
[424503097,1780978242000,-582.59,0.00016438,2]
[424503107,1780978242000,-500.0,0.00016438,2]
[424503100,1780978242000,-500.0,0.00016438,2]
[424503111,1780978242000,-501.12012135,0.00016438,2]
[424503102,1780978242000,-500.0,0.00016438,2]
[424503098,1780978242000,-1040.78,0.00016438,2]
[424503113,1780978242000,-500.0,0.00016438,2]
[424503095,1780978242000,-500.0,0.00016438,2]
[424503109,1780978242000,-500.0,0.00016438,2]
[424503105,1780978242000,-500.0,0.00016438,2]
[424503104,1780978242000,-561.41297415,0.00016438,2]
[424503115,1780978242000,-500.0,0.00016438,2]
[424503117,1780978242000,-500.0,0.00016438,2]
[424503119,1780978242000,-500.0,0.00016438,2]
[424503121,1780978242000,-500.0,0.00016438,2]